[Event "Moscow-ch Women 2021"]
[Site "Moscow"]
[Date "2021.03.30"]
[Round "6.9"]
[White "Kunikova, Polina S"]
[Black "Korovina, Yana"]
[Result "0-1"]
[ECO "B22"]
[WhiteElo "1028"]
[BlackElo "1531"]
[Annotator "NA"]
[PlyCount "58"]
[EventDate "2021.03.25"]
[EventType "swiss"]
[EventCountry "RUS"]
[SourceTitle "playchess.com"]
[Source "ChessBase"]
[SourceQuality "1"]
[TimeControl "5400+30"]

1. e4 {[%emt 0:00:00]} c5 {[%emt 0:00:00]} 2. c3 {[%emt 0:00:00]} e5 {[%emt 0:00:00]} 3. Nf3 {[%emt 0:00:01]} Nc6 {[%emt 0:00:00]} 4. Bc4 {[%emt 0:00:43]} g6 {[%emt 0:00:43]} 5. d4 {[%emt 0:00:51]} exd4 {[%emt 0:00:53]} 6. cxd4 {[%emt 0:00:06]} cxd4 {[%emt 0:00:11]} 7. Nxd4 {[%emt 0:00:46]} Nxd4 {[%emt 0:04:40]} 8. Qxd4 {[%emt 0:00:21]} Qf6 {[%emt 0:00:54]} 9. e5 {[%emt 0:01:28]} Qb6 {[%emt 0:04:23]} 10. Qd5 {[%emt 0:05:21]} Qe6 {[%emt 0:01:08]} 11. Qe4 {[%emt 0:01:14]} Qe7 {[%emt 0:01:50]} 12. Nc3 {[%emt 0:01:06]} Bg7 {[%emt 0:08:06]} 13. Nd5 {[%emt 0:01:00]} Qd8 {[%emt 0:04:18]} 14. O-O {[%emt 0:02:24]} h6 {[%emt 0:08:58]} 15. Bf4 {[%emt 0:00:44]} Ne7 {[%emt 0:06:10]} 16. Nf6+ {[%emt 0:01:53]} Kf8 {[%emt 0:00:41]} 17. Be3 {[%emt 0:02:32]} Bxf6 {[%emt 0:07:52]} 18. exf6 {[%emt 0:00:22]} Nc6 {[%emt 0:00:58]} 19. Bd4 {[%emt 0:08:14]} d5 {[%emt 0:07:59]} 20. Bc5+ {[%emt 0:01:44]} Kg8 {[%emt 0:00:17]} 21. Qxd5 {[%emt 0:02:07]} Qxf6 {[%emt 0:00:33]} 22. Qd3 {[%emt 0:03:36]} Bf5 {[%emt 0:01:55]} 23. Qf3 {[%emt 0:02:01]} Kh7 {[%emt 0:02:59]} 24. b3 {[%emt 0:07:16]} b6 {[%emt 0:02:10]} 25. Be3 {[%emt 0:02:41]} Ne5 {[%emt 0:03:25]} 26. Qf4 {[%emt 0:01:26]} g5 {[%emt 0:02:09]} 27. Qd4 {[%emt 0:01:55]} Rhd8 {[%emt 0:02:22]} 28. Qc3 {[%emt 0:00:42]} Nf3+ {[%emt 0:00:17]} 29. gxf3 {[%emt 0:01:30]} Qxc3 {[%emt 0:00:06]} 0-1

[Event "Moscow-ch Women 2021"]
[Site "Moscow"]
[Date "2021.03.30"]
[Round "6.10"]
[White "Shevtsova, Stefania"]
[Black "Cherepanova, Evita"]
[Result "1/2-1/2"]
[ECO "C02"]
[WhiteElo "1654"]
[BlackElo "1621"]
[Annotator "NA"]
[PlyCount "125"]
[EventDate "2021.03.25"]
[EventType "swiss"]
[EventCountry "RUS"]
[SourceTitle "playchess.com"]
[Source "ChessBase"]
[SourceQuality "1"]
[TimeControl "5400+30"]

1. e4 {[%emt 0:00:00]} e6 {[%emt 0:00:00]} 2. d4 {[%emt 0:00:00]} d5 {[%emt 0:00:00]} 3. e5 {[%emt 0:00:06]} c5 {[%emt 0:00:00]} 4. c3 {[%emt 0:00:07]} Qb6 {[%emt 0:00:00]} 5. Nf3 {[%emt 0:00:08]} Nc6 {[%emt 0:00:00]} 6. a3 {[%emt 0:00:09]} c4 {[%emt 0:00:00]} 7. Nbd2 {[%emt 0:01:15]} Na5 {[%emt 0:00:00]} 8. Rb1 {[%emt 0:01:15]} Bd7 {[%emt 0:00:30]} 9. g3 {[%emt 0:14:00]} Qc7 {[%emt 0:00:07]} 10. Bg2 {[%emt 0:00:43]} Ne7 {[%emt 0:00:06]} 11. O-O {[%emt 0:00:29]} Nc8 {[%emt 0:00:06]} 12. Nh4 {[%emt 0:13:31]} g5 {[%emt 0:03:00]} 13. Nhf3 {[%emt 0:00:14]} Be7 {[%emt 0:03:47]} 14. h3 {[%emt 0:10:18]} Nb6 {[%emt 0:01:20]} 15. Nh2 {[%emt 0:04:09]} Ba4 {[%emt 0:04:58]} 16. Qf3 {[%emt 0:07:11]} Bc2 {[%emt 0:00:49]} 17. Ra1 {[%emt 0:00:05]} Bg6 {[%emt 0:00:15]} 18. Ng4 {[%emt 0:01:00]} O-O-O {[%emt 0:01:42]} 19. Nf6 {[%emt 0:11:28]} Nd7 {[%emt 0:08:29]} 20. Nxd7 {[%emt 0:02:48]} Qxd7 {[%emt 0:00:33]} 21. Qd1 {[%emt 0:00:16]} Qb5 {[%emt 0:01:52]} 22. Re1 {[%emt 0:15:30]} Rdg8 {[%emt 0:02:47]} 23. Bf1 {[%emt 0:02:00]} Qb6 {[%emt 0:02:36]} 24. Ra2 {[%emt 0:01:14]} g4 {[%emt 0:05:17]} 25. h4 {[%emt 0:01:49]} Nb3 {[%emt 0:05:23]} 26. Nxb3 {[%emt 0:00:17]} cxb3 {[%emt 0:00:02]} 27. Ra1 {[%emt 0:00:07]} Bc2 {[%emt 0:01:20]} 28. Qe2 {[%emt 0:02:44]} a6 {[%emt 0:03:18]} 29. Bf4 {[%emt 0:00:26]} Kb8 {[%emt 0:03:50]} 30. Kh2 {[%emt 0:01:13]} h5 {[%emt 0:10:35]} 31. Qd2 {[%emt 0:00:29]} Rc8 {[%emt 0:00:35]} 32. Bg5 {[%emt 0:01:07]} Bxg5 {[%emt 0:03:13]} 33. Qxg5 {[%emt 0:00:07]} Qd8 {[%emt 0:03:31]} 34. Qxd8 {[%emt 0:00:25]} Rhxd8 {[%emt 0:01:11]} 35. Re3 {[%emt 0:00:26]} Rf8 {[%emt 0:02:24]} 36. Bd3 {[%emt 0:10:54]} Bxd3 {[%emt 0:00:31]} 37. Rxd3 {[%emt 0:00:06]} f6 {[%emt 0:00:24]} 38. exf6 {[%emt 0:00:42]} Rxf6 {[%emt 0:00:03]} 39. Rd2 {[%emt 0:00:11]} Rcf8 {[%emt 0:02:23]} 40. Kg2 {[%emt 0:00:11]} Kc7 {[%emt 0:00:40]} 41. Re1 {[%emt 0:00:08]} Kd6 {[%emt 0:00:38]} 42. Re5 {[%emt 0:00:13]} Rf5 {[%emt 0:00:28]} 43. Rde2 {[%emt 0:11:57]} R8f6 {[%emt 0:02:19]} 44. Kg1 {[%emt 0:03:36]} Kd7 {[%emt 0:10:28]} 45. Kg2 {[%emt 0:01:15]} b5 {[%emt 0:01:53]} 46. Kg1 {[%emt 0:01:09]} Rxe5 {[%emt 0:00:50]} 47. Rxe5 {[%emt 0:00:07]} Rf5 {[%emt 0:00:08]} 48. Rxf5 {[%emt 0:01:39]} exf5 {[%emt 0:19:39]} 49. Kf1 {[%emt 0:00:08]} Ke6 {[%emt 0:00:39]} 50. Ke2 {[%emt 0:00:47]} f4 {[%emt 0:00:31]} 51. Kd3 {[%emt 0:00:28]} Kf5 {[%emt 0:00:09]} 52. Kd2 {[%emt 0:05:13]} fxg3 {[%emt 0:00:57]} 53. fxg3 {[%emt 0:00:07]} Ke4 {[%emt 0:00:01]} 54. Ke2 {[%emt 0:00:11]} a5 {[%emt 0:00:03]} 55. Kd2 {[%emt 0:00:31]} Kf3 {[%emt 0:04:25]} 56. a4 {[%emt 0:00:13]} bxa4 {[%emt 0:00:07]} 57. c4 {[%emt 0:03:16]} Ke4 {[%emt 0:00:40]} 58. c5 {[%emt 0:00:11]} Kf5 {[%emt 0:00:01]} 59. Kc3 {[%emt 0:01:07]} Ke6 {[%emt 0:00:45]} 60. Kd2 {[%emt 0:00:09]} Kd7 {[%emt 0:00:17]} 61. Kd3 {[%emt 0:00:16]} Kc6 {[%emt 0:00:56]} 62. Kd2 {[%emt 0:00:08]} Kb5 {[%emt 0:00:50]} 63. Kc3 {[%emt 0:00:12]} 1/2-1/2

[Event "Moscow-ch Women 2021"]
[Site "Moscow"]
[Date "2021.03.31"]
[Round "7.1"]
[White "Charochkina, Daria"]
[Black "Dimitrova, Aleksandra"]
[Result "1-0"]
[ECO "A45"]
[WhiteElo "2337"]
[BlackElo "2275"]
[Annotator "NA"]
[PlyCount "109"]
[EventDate "2021.03.25"]
[EventType "swiss"]
[EventCountry "RUS"]
[SourceTitle "playchess.com"]
[Source "ChessBase"]
[SourceQuality "1"]
[TimeControl "5400+30"]

1. d4 {[%emt 0:00:00]} Nf6 {[%emt 0:00:00]} 2. Bg5 {[%emt 0:00:00]} c5 {[%emt 0:00:00]} 3. Bxf6 {[%emt 0:00:00]} exf6 {[%emt 0:00:02]} 4. e3 {[%emt 0:00:02]} cxd4 {[%emt 0:05:26]} 5. Qxd4 {[%emt 0:00:11]} Nc6 {[%emt 0:04:32]} 6. Qe4+ {[%emt 0:00:16]} Qe7 {[%emt 0:09:48]} 7. Qxe7+ {[%emt 0:00:34]} Bxe7 {[%emt 0:04:12]} 8. Nc3 {[%emt 0:00:05]} O-O {[%emt 0:02:54]} 9. O-O-O {[%emt 0:01:01]} a6 {[%emt 0:04:47]} 10. g3 {[%emt 0:27:17]} b5 {[%emt 0:06:03]} 11. Bh3 {[%emt 0:00:34]} Ne5 {[%emt 0:07:05]} 12. Nd5 {[%emt 0:02:10]} Bc5 {[%emt 0:07:57]} 13. Ne2 {[%emt 0:00:10]} Bb7 {[%emt 0:03:35]} 14. Nec3 {[%emt 0:05:50]} Rfd8 {[%emt 0:02:16]} 15. Rhe1 {[%emt 0:09:19]} Bc6 {[%emt 0:06:38]} 16. Ne4 {[%emt 0:09:09]} Bf8 {[%emt 0:03:27]} 17. f4 {[%emt 0:02:02]} Nc4 {[%emt 0:00:53]} 18. b3 {[%emt 0:00:47]} Bxd5 {[%emt 0:09:43]} 19. Rxd5 {[%emt 0:00:14]} Nb6 {[%emt 0:00:06]} 20. Rd3 {[%emt 0:01:04]} d5 {[%emt 0:00:41]} 21. Nc3 {[%emt 0:04:51]} b4 {[%emt 0:01:01]} 22. Ne2 {[%emt 0:00:47]} g6 {[%emt 0:00:56]} 23. g4 {[%emt 0:16:35]} Bc5 {[%emt 0:00:50]} 24. Ng3 {[%emt 0:03:11]} Re8 {[%emt 0:03:19]} 25. Bg2 {[%emt 0:00:19]} Re7 {[%emt 0:04:02]} 26. Re2 {[%emt 0:01:41]} Rae8 {[%emt 0:01:09]} 27. Kd2 {[%emt 0:01:01]} Kg7 {[%emt 0:01:11]} 28. Nf1 {[%emt 0:07:03]} Rd8 {[%emt 0:03:31]} 29. Bf3 {[%emt 0:00:51]} a5 {[%emt 0:02:18]} 30. Ke1 {[%emt 0:00:48]} a4 {[%emt 0:01:38]} 31. Kf2 {[%emt 0:00:24]} Red7 {[%emt 0:02:47]} 32. h4 {[%emt 0:02:22]} axb3 {[%emt 0:00:36]} 33. cxb3 {[%emt 0:00:04]} d4 {[%emt 0:00:38]} 34. e4 {[%emt 0:00:41]} Nc8 {[%emt 0:01:27]} 35. g5 {[%emt 0:01:04]} fxg5 {[%emt 0:00:47]} 36. hxg5 {[%emt 0:00:07]} Nd6 {[%emt 0:00:20]} 37. e5 {[%emt 0:00:53]} Nf5 {[%emt 0:00:39]} 38. Bg4 {[%emt 0:00:03]} Ra7 {[%emt 0:00:33]} 39. Bxf5 {[%emt 0:00:07]} gxf5 {[%emt 0:00:02]} 40. Ng3 {[%emt 0:00:02]} Kg6 {[%emt 0:00:15]} 41. Kf3 {[%emt 0:00:44]} Rda8 {[%emt 0:00:21]} 42. Rdd2 {[%emt 0:00:19]} Bf8 {[%emt 0:00:31]} 43. Rxd4 {[%emt 0:00:39]} h6 {[%emt 0:00:56]} 44. gxh6 {[%emt 0:00:50]} Rxa2 {[%emt 0:00:19]} 45. Rxa2 {[%emt 0:00:28]} Rxa2 {[%emt 0:00:01]} 46. Rd8 {[%emt 0:00:21]} Bc5 {[%emt 0:00:54]} 47. Rg8+ {[%emt 0:00:16]} Kh7 {[%emt 0:01:22]} 48. Rg7+ {[%emt 0:00:02]} Kh8 {[%emt 0:00:08]} 49. Nxf5 {[%emt 0:00:06]} Rb2 {[%emt 0:00:35]} 50. Rxf7 {[%emt 0:00:03]} Rxb3+ {[%emt 0:00:07]} 51. Kg4 {[%emt 0:01:29]} Rb1 {[%emt 0:00:30]} 52. Nh4 {[%emt 0:00:02]} Rg1+ {[%emt 0:00:36]} 53. Kf5 {[%emt 0:00:25]} b3 {[%emt 0:00:39]} 54. Ng6+ {[%emt 0:00:23]} Kg8 {[%emt 0:00:18]} 55. Rg7# {[%emt 0:00:27]} 1-0

[Event "Moscow-ch Women 2021"]
[Site "Moscow"]
[Date "2021.03.31"]
[Round "7.2"]
[White "Paramzina, Anastasya"]
[Black "Zherebtsova, Alexandra"]
[Result "1-0"]
[ECO "C55"]
[WhiteElo "2252"]
[BlackElo "2177"]
[Annotator "NA"]
[PlyCount "61"]
[EventDate "2021.03.25"]
[EventType "swiss"]
[EventCountry "RUS"]
[SourceTitle "playchess.com"]
[Source "ChessBase"]
[SourceQuality "1"]
[TimeControl "5400+30"]

1. e4 {[%emt 0:13:46]} e5 {[%emt 0:00:00]} 2. Nf3 {[%emt 0:00:03]} Nc6 {[%emt 0:00:00]} 3. Bc4 {[%emt 0:00:13]} Nf6 {[%emt 0:00:08]} 4. d3 {[%emt 0:00:04]} h6 {[%emt 0:00:09]} 5. O-O {[%emt 0:00:24]} d6 {[%emt 0:00:34]} 6. a4 {[%emt 0:00:16]} g5 {[%emt 0:07:41]} 7. a5 {[%emt 0:01:37]} a6 {[%emt 0:03:13]} 8. c3 {[%emt 0:00:14]} Bg7 {[%emt 0:04:38]} 9. Nbd2 {[%emt 0:00:38]} O-O {[%emt 0:02:27]} 10. h3 {[%emt 0:00:27]} g4 {[%emt 0:17:17]} 11. hxg4 {[%emt 0:03:12]} Bxg4 {[%emt 0:04:03]} 12. Qb3 {[%emt 0:09:02]} Qd7 {[%emt 0:07:02]} 13. Nh2 {[%emt 0:01:48]} Be6 {[%emt 0:03:51]} 14. Bxe6 {[%emt 0:03:15]} fxe6 {[%emt 0:00:35]} 15. Ndf3 {[%emt 0:00:40]} Rab8 {[%emt 0:10:04]} 16. g3 {[%emt 0:06:31]} Qf7 {[%emt 0:02:41]} 17. Kg2 {[%emt 0:12:04]} Nh5 {[%emt 0:06:39]} 18. Rh1 {[%emt 0:01:00]} Kh7 {[%emt 0:06:18]} 19. Be3 {[%emt 0:03:58]} Rg8 {[%emt 0:02:33]} 20. Ng4 {[%emt 0:00:44]} Qg6 {[%emt 0:04:46]} 21. Rh4 {[%emt 0:09:04]} Nf4+ {[%emt 0:04:55]} 22. gxf4 {[%emt 0:02:16]} exf4 {[%emt 0:02:32]} 23. Bxf4 {[%emt 0:01:14]} Bf6 {[%emt 0:00:22]} 24. Rxh6+ {[%emt 0:02:03]} Qxh6 {[%emt 0:00:05]} 25. Bxh6 {[%emt 0:00:05]} Rxg4+ {[%emt 0:00:03]} 26. Kf1 {[%emt 0:04:52]} Kxh6 {[%emt 0:00:05]} 27. Qxe6 {[%emt 0:00:06]} Rg6 {[%emt 0:00:12]} 28. Ke2 {[%emt 0:00:49]} Rf8 {[%emt 0:04:28]} 29. Qd7 {[%emt 0:01:15]} Be7 {[%emt 0:00:17]} 30. Rh1+ {[%emt 0:00:57]} Kg7 {[%emt 0:00:03]} 31. Nh4 {[%emt 0:00:50]} 1-0

[Event "Moscow-ch Women 2021"]
[Site "Moscow"]
[Date "2021.03.31"]
[Round "7.3"]
[White "Ilyina, Lada"]
[Black "Gorovenko, Darya"]
[Result "0-1"]
[ECO "B20"]
[WhiteElo "1959"]
[BlackElo "2106"]
[Annotator "NA"]
[PlyCount "112"]
[EventDate "2021.03.25"]
[EventType "swiss"]
[EventCountry "RUS"]
[SourceTitle "playchess.com"]
[Source "ChessBase"]
[SourceQuality "1"]
[TimeControl "5400+30"]

1. e4 {[%emt 0:00:00]} c5 {[%emt 0:00:00]} 2. g3 {[%emt 0:01:02]} d5 {[%emt 0:00:24]} 3. d3 {[%emt 0:01:08]} Nc6 {[%emt 0:00:52]} 4. Bg2 {[%emt 0:00:42]} Nf6 {[%emt 0:00:22]} 5. Nc3 {[%emt 0:02:35]} d4 {[%emt 0:01:17]} 6. Nce2 {[%emt 0:01:40]} e5 {[%emt 0:00:15]} 7. h3 {[%emt 0:05:29]} Rb8 {[%emt 0:07:26]} 8. f4 {[%emt 0:01:59]} Bd6 {[%emt 0:01:26]} 9. Nf3 {[%emt 0:01:52]} b5 {[%emt 0:00:47]} 10. O-O {[%emt 0:04:54]} Qc7 {[%emt 0:00:52]} 11. fxe5 {[%emt 0:12:27]} Nxe5 {[%emt 0:00:14]} 12. Nh4 {[%emt 0:01:05]} h6 {[%emt 0:03:56]} 13. Rxf6 {[%emt 0:26:09]} gxf6 {[%emt 0:00:43]} 14. Nf4 {[%emt 0:00:03]} Be6 {[%emt 0:06:42]} 15. Nh5 {[%emt 0:01:40]} Nd7 {[%emt 0:05:00]} 16. Qf3 {[%emt 0:08:00]} Be5 {[%emt 0:04:22]} 17. Ng7+ {[%emt 0:04:06]} Kd8 {[%emt 0:00:32]} 18. Ng6 {[%emt 0:16:17]} Rh7 {[%emt 0:16:57]} 19. Nxe5 {[%emt 0:05:52]} fxe5 {[%emt 0:00:16]} 20. Nxe6+ {[%emt 0:00:47]} fxe6 {[%emt 0:00:05]} 21. Bd2 {[%emt 0:01:57]} Qd6 {[%emt 0:03:10]} 22. Rf1 {[%emt 0:00:30]} Kc7 {[%emt 0:00:43]} 23. Qh5 {[%emt 0:00:37]} Qe7 {[%emt 0:04:25]} 24. g4 {[%emt 0:00:31]} Qe8 {[%emt 0:04:56]} 25. Qh4 {[%emt 0:00:14]} Qg6 {[%emt 0:00:18]} 26. Kh2 {[%emt 0:00:50]} h5 {[%emt 0:15:14]} 27. g5 {[%emt 0:00:01]} Rf8 {[%emt 0:00:08]} 28. Rxf8 {[%emt 0:00:50]} Nxf8 {[%emt 0:00:04]} 29. Bf3 {[%emt 0:00:38]} Qf7 {[%emt 0:05:17]} 30. Qg3 {[%emt 0:00:01]} Ng6 {[%emt 0:00:12]} 31. b3 {[%emt 0:00:59]} h4 {[%emt 0:00:54]} 32. Qg4 {[%emt 0:00:12]} b4 {[%emt 0:02:58]} 33. Kg2 {[%emt 0:00:48]} Rh8 {[%emt 0:01:26]} 34. Be1 {[%emt 0:00:30]} Kd7 {[%emt 0:01:36]} 35. Bf2 {[%emt 0:00:27]} Qf4 {[%emt 0:00:37]} 36. Be1 {[%emt 0:00:34]} Ke7 {[%emt 0:00:33]} 37. Bd1 {[%emt 0:00:32]} Kf7 {[%emt 0:01:25]} 38. Be2 {[%emt 0:00:01]} Qxg4+ {[%emt 0:01:08]} 39. Bxg4 {[%emt 0:00:01]} Nf4+ {[%emt 0:00:07]} 40. Kf3 {[%emt 0:00:07]} Kg6 {[%emt 0:00:05]} 41. Bd2 {[%emt 0:00:11]} Rf8 {[%emt 0:00:31]} 42. Bxf4 {[%emt 0:00:11]} Rxf4+ {[%emt 0:00:05]} 43. Kg2 {[%emt 0:00:43]} Kxg5 {[%emt 0:00:04]} 44. Bxe6 {[%emt 0:00:20]} Rf8 {[%emt 0:00:15]} 45. Bf5 {[%emt 0:02:22]} Kf4 {[%emt 0:00:08]} 46. Kf2 {[%emt 0:00:01]} Rf6 {[%emt 0:00:24]} 47. Bd7 {[%emt 0:00:32]} Ra6 {[%emt 0:00:40]} 48. Ba4 {[%emt 0:00:05]} Ra5 {[%emt 0:00:24]} 49. Ke2 {[%emt 0:00:22]} Kg3 {[%emt 0:00:06]} 50. Bd7 {[%emt 0:00:03]} Rxa2 {[%emt 0:00:10]} 51. Kd2 {[%emt 0:00:02]} Ra1 {[%emt 0:00:10]} 52. Ke2 {[%emt 0:00:27]} Rh1 {[%emt 0:00:08]} 53. Bf5 {[%emt 0:00:44]} Rh2+ {[%emt 0:00:07]} 54. Kd1 {[%emt 0:00:04]} Rxh3 {[%emt 0:00:12]} 55. Bxh3 {[%emt 0:00:03]} Kxh3 {[%emt 0:00:05]} 56. Ke2 {[%emt 0:00:02]} Kg2 {[%emt 0:00:07]} 0-1

[Event "Moscow-ch Women 2021"]
[Site "Moscow"]
[Date "2021.03.31"]
[Round "7.4"]
[White "Danilova, Rada"]
[Black "Diakonova, Ekaterina"]
[Result "1-0"]
[ECO "A65"]
[WhiteElo "2048"]
[BlackElo "2156"]
[Annotator "NA"]
[PlyCount "89"]
[EventDate "2021.03.25"]
[EventType "swiss"]
[EventCountry "RUS"]
[SourceTitle "playchess.com"]
[Source "ChessBase"]
[SourceQuality "1"]
[TimeControl "5400+30"]

1. d4 {[%emt 0:00:00]} e6 {[%emt 0:01:14]} 2. c4 {[%emt 0:00:10]} c5 {[%emt 0:00:21]} 3. d5 {[%emt 0:00:42]} exd5 {[%emt 0:00:05]} 4. cxd5 {[%emt 0:00:39]} d6 {[%emt 0:00:04]} 5. Nc3 {[%emt 0:00:31]} g6 {[%emt 0:00:15]} 6. e4 {[%emt 0:00:52]} Bg7 {[%emt 0:01:12]} 7. Nge2 {[%emt 0:02:01]} Nf6 {[%emt 0:01:57]} 8. Ng3 {[%emt 0:00:26]} O-O {[%emt 0:03:08]} 9. Be2 {[%emt 0:00:37]} a6 {[%emt 0:11:38]} 10. a4 {[%emt 0:00:12]} Nbd7 {[%emt 0:00:04]} 11. O-O {[%emt 0:01:39]} Rb8 {[%emt 0:03:07]} 12. Bg5 {[%emt 0:06:06]} Qc7 {[%emt 0:01:22]} 13. Qd2 {[%emt 0:01:38]} Re8 {[%emt 0:02:42]} 14. f4 {[%emt 0:10:16]} h6 {[%emt 0:06:46]} 15. Bh4 {[%emt 0:04:22]} c4 {[%emt 0:02:36]} 16. Kh1 {[%emt 0:11:20]} Qc5 {[%emt 0:23:19]} 17. a5 {[%emt 0:14:56]} b5 {[%emt 0:00:44]} 18. axb6 {[%emt 0:01:02]} Qxb6 {[%emt 0:03:48]} 19. Bxc4 {[%emt 0:07:10]} Ng4 {[%emt 0:00:21]} 20. Nd1 {[%emt 0:08:57]} Nc5 {[%emt 0:06:01]} 21. e5 {[%emt 0:08:04]} dxe5 {[%emt 0:01:45]} 22. h3 {[%emt 0:06:04]} Nf6 {[%emt 0:00:53]} 23. fxe5 {[%emt 0:00:43]} Rxe5 {[%emt 0:00:05]} 24. Qf4 {[%emt 0:00:37]} Ncd7 {[%emt 0:01:46]} 25. Bxf6 {[%emt 0:02:50]} Bxf6 {[%emt 0:00:04]} 26. Ra3 {[%emt 0:00:28]} Kg7 {[%emt 0:10:02]} 27. Rb3 {[%emt 0:00:11]} Qa7 {[%emt 0:01:25]} 28. Rxb8 {[%emt 0:00:13]} Qxb8 {[%emt 0:00:17]} 29. Ne3 {[%emt 0:01:09]} Qxb2 {[%emt 0:02:05]} 30. Ng4 {[%emt 0:01:08]} Re8 {[%emt 0:10:07]} 31. Qxh6+ {[%emt 0:00:21]} Kg8 {[%emt 0:00:04]} 32. Qf4 {[%emt 0:01:02]} Kg7 {[%emt 0:02:30]} 33. Bd3 {[%emt 0:00:21]} Qc3 {[%emt 0:03:56]} 34. Nh5+ {[%emt 0:01:27]} Kf8 {[%emt 0:00:31]} 35. Nhxf6 {[%emt 0:00:59]} Nxf6 {[%emt 0:00:37]} 36. Nxf6 {[%emt 0:00:29]} Re1 {[%emt 0:00:18]} 37. Rxe1 {[%emt 0:02:55]} Qxe1+ {[%emt 0:00:02]} 38. Kh2 {[%emt 0:00:08]} Qc3 {[%emt 0:00:17]} 39. Be4 {[%emt 0:00:25]} a5 {[%emt 0:01:26]} 40. d6 {[%emt 0:00:24]} Kg7 {[%emt 0:00:07]} 41. d7 {[%emt 0:00:27]} Bxd7 {[%emt 0:00:01]} 42. Nxd7 {[%emt 0:00:06]} f6 {[%emt 0:00:07]} 43. Qd6 {[%emt 0:00:31]} f5 {[%emt 0:00:28]} 44. Qf8+ {[%emt 0:00:09]} Kh7 {[%emt 0:00:07]} 45. Nf6+ {[%emt 0:00:05]} 1-0

[Event "Moscow-ch Women 2021"]
[Site "Moscow"]
[Date "2021.03.31"]
[Round "7.5"]
[White "Shvedova, Alexandra"]
[Black "Zvereva, Margarita"]
[Result "0-1"]
[ECO "C54"]
[WhiteElo "1997"]
[BlackElo "1951"]
[Annotator "NA"]
[PlyCount "114"]
[EventDate "2021.03.25"]
[EventType "swiss"]
[EventCountry "RUS"]
[SourceTitle "playchess.com"]
[Source "ChessBase"]
[SourceQuality "1"]
[TimeControl "5400+30"]

1. e4 {[%emt 0:00:00]} e5 {[%emt 0:00:00]} 2. Nf3 {[%emt 0:00:00]} Nc6 {[%emt 0:00:00]} 3. Bc4 {[%emt 0:00:00]} Bc5 {[%emt 0:00:00]} 4. c3 {[%emt 0:00:00]} Nf6 {[%emt 0:00:00]} 5. d4 {[%emt 0:00:00]} exd4 {[%emt 0:00:01]} 6. e5 {[%emt 0:00:00]} d5 {[%emt 0:00:11]} 7. Bb5 {[%emt 0:00:01]} Ne4 {[%emt 0:00:09]} 8. cxd4 {[%emt 0:00:08]} Bb6 {[%emt 0:00:07]} 9. Nc3 {[%emt 0:00:15]} O-O {[%emt 0:00:30]} 10. Be3 {[%emt 0:00:06]} Bg4 {[%emt 0:00:08]} 11. h3 {[%emt 0:00:26]} Bh5 {[%emt 0:00:11]} 12. Qc2 {[%emt 0:00:57]} Nxc3 {[%emt 0:00:47]} 13. bxc3 {[%emt 0:00:11]} f6 {[%emt 0:08:44]} 14. exf6 {[%emt 0:07:21]} Qxf6 {[%emt 0:00:24]} 15. O-O-O {[%emt 0:36:27]} Bg6 {[%emt 0:16:26]} 16. Bd3 {[%emt 0:00:06]} Bxd3 {[%emt 0:02:30]} 17. Qxd3 {[%emt 0:00:04]} Ne7 {[%emt 0:02:24]} 18. Ng5 {[%emt 0:12:35]} Qg6 {[%emt 0:07:45]} 19. h4 {[%emt 0:02:19]} Qxd3 {[%emt 0:02:54]} 20. Rxd3 {[%emt 0:00:05]} Nf5 {[%emt 0:01:02]} 21. Ne6 {[%emt 0:12:58]} Rf7 {[%emt 0:03:06]} 22. Nf4 {[%emt 0:08:11]} c6 {[%emt 0:01:27]} 23. Rdd1 {[%emt 0:00:59]} Nd6 {[%emt 0:09:59]} 24. Kc2 {[%emt 0:03:07]} Re8 {[%emt 0:04:07]} 25. Rde1 {[%emt 0:05:45]} Ne4 {[%emt 0:05:55]} 26. Bc1 {[%emt 0:07:09]} Bc7 {[%emt 0:09:47]} 27. Nd3 {[%emt 0:00:47]} Rfe7 {[%emt 0:00:16]} 28. Ba3 {[%emt 0:01:00]} Re6 {[%emt 0:00:17]} 29. f3 {[%emt 0:01:08]} Ng3 {[%emt 0:00:39]} 30. Rxe6 {[%emt 0:00:54]} Rxe6 {[%emt 0:00:04]} 31. Re1 {[%emt 0:00:06]} Rxe1 {[%emt 0:01:00]} 32. Nxe1 {[%emt 0:00:04]} Nf5 {[%emt 0:07:02]} 33. h5 {[%emt 0:00:30]} Bg3 {[%emt 0:03:50]} 34. Nd3 {[%emt 0:01:54]} Ne3+ {[%emt 0:01:10]} 35. Kc1 {[%emt 0:00:51]} Nxg2 {[%emt 0:00:39]} 36. Nc5 {[%emt 0:00:33]} b6 {[%emt 0:01:25]} 37. Nd3 {[%emt 0:00:33]} Ne3 {[%emt 0:02:50]} 38. Nb4 {[%emt 0:00:24]} Bd6 {[%emt 0:02:15]} 39. Nc2 {[%emt 0:00:35]} Bxa3+ {[%emt 0:01:00]} 40. Nxa3 {[%emt 0:00:05]} Kf7 {[%emt 0:01:38]} 41. Kd2 {[%emt 0:00:29]} Nf1+ {[%emt 0:02:34]} 42. Ke1 {[%emt 0:00:22]} Ng3 {[%emt 0:00:06]} 43. Nc2 {[%emt 0:00:08]} Ke6 {[%emt 0:01:10]} 44. Kf2 {[%emt 0:00:30]} Nxh5 {[%emt 0:00:09]} 45. Ke3 {[%emt 0:00:06]} c5 {[%emt 0:03:30]} 46. dxc5 {[%emt 0:00:25]} bxc5 {[%emt 0:00:04]} 47. Ne1 {[%emt 0:00:03]} g5 {[%emt 0:01:17]} 48. Nd3 {[%emt 0:00:11]} Kd6 {[%emt 0:00:07]} 49. Nf2 {[%emt 0:00:06]} Nf4 {[%emt 0:00:46]} 50. Nh1 {[%emt 0:01:38]} Ke5 {[%emt 0:01:04]} 51. Nf2 {[%emt 0:00:16]} h5 {[%emt 0:00:07]} 52. a4 {[%emt 0:00:20]} h4 {[%emt 0:01:28]} 53. Ng4+ {[%emt 0:00:11]} Kd6 {[%emt 0:00:45]} 54. Nh6 {[%emt 0:00:24]} Ke6 {[%emt 0:00:15]} 55. Ng4 {[%emt 0:00:17]} Ng6 {[%emt 0:00:17]} 56. a5 {[%emt 0:00:20]} Ne5 {[%emt 0:00:08]} 57. Nf2 {[%emt 0:00:05]} Nc4+ {[%emt 0:02:04]} 0-1